bitfinex/quotes_ETHUSD_20220123
["timestamp","ask_amount","ask_price","bid_price","bid_amount"]
[1642935255150,0.08685181,2528.2,2527.6,1.42809588]
[1642935256505,0.08685181,2528.2,2527.2,0.158]
[1642935257404,0.08685181,2528.2,2527.5,1.36394358]
[1642935257603,0.08685181,2528.2,2527.5,2.4893659]
[1642935261553,0.08685181,2528.2,2527.5,2.6688529]
[1642935262056,0.20646943,2528.6,2527.8,0.06178199]
[1642935262057,0.29332124,2528.6,2527.8,0.06178199]
[1642935262252,0.00263891,2529.2,2527.8,3.56988531]
[1642935262650,0.00263891,2529.2,2527.8,26.61810332]
[1642935262851,1.252383,2528.8,2528.4,1.36713364]
[1642935263054,1.252383,2528.8,2527.6,3.34348055]
[1642935263252,1.33923481,2528.8,2527.5,0.179487]
[1642935264101,1.63923481,2528.8,2527.7,1.13356955]
[1642935264295,1.28219679,2528.7,2527.8,1.09210273]
[1642935264495,1.63923481,2528.8,2527.8,1.09210273]
[1642935264803,1.63923481,2528.8,2527.5,0.179487]
[1642935264804,0.08685181,2528.6,2527.5,0.179487]
[1642935265499,0.01257606,2528.3,2527.5,0.179487]
[1642935265900,0.08685181,2528.2,2527.5,0.179487]
[1642935266100,1.53167067,2528.0,2527.5,0.179487]
[1642935266501,0.38685181,2528.0,2527.5,0.179487]
[1642935266899,0.08685181,2528.0,2527.5,0.179487]
[1642935267499,1.12663859,2528.1,2527.5,0.179487]
[1642935268550,3.09211122,2528.0,2527.5,0.179487]
[1642935268750,1.72663859,2528.1,2527.5,0.179487]
[1642935268951,7.1,2527.8,2526.4,1.2019]
[1642935269153,3.59354884,2527.7,2526.4,1.2019]
[1642935269351,1.31276101,2527.7,2526.4,1.2019]
[1642935269956,1.39220264,2527.6,2526.8,1.29283469]
[1642935270357,0.3,2527.5,2526.8,1.29283469]
[1642935270559,1.31276101,2527.7,2526.8,1.29283469]
[1642935271057,2.70443623,2527.6,2526.8,1.29283469]
[1642935271257,0.3,2527.5,2526.8,1.29283469]
[1642935271498,0.01276101,2527.7,2527.4,0.48791534]
[1642935271800,8.4706174,2528.4,2527.4,0.48791534]
[1642935271801,7.48263891,2528.4,2527.4,0.48791534]
[1642935272002,0.00263891,2528.4,2527.5,23.11]
[1642935272200,7.48,2529.1,2527.6,0.04600566]
[1642935272399,7.48,2529.1,2527.7,0.0524179]
[1642935272604,7.48,2529.1,2527.7,23.3604279]
[1642935272801,0.97598306,2529.0,2528.5,1.24034693]
[1642935273802,2.84461948,2529.4,2528.6,1.25009161]
[1642935274001,1.25008925,2529.3,2528.6,1.25009161]
[1642935274201,1.25008925,2529.3,2527.5,0.01286621]
[1642935274401,2.8878909,2529.2,2527.5,0.01286621]
[1642935274600,10.3678909,2529.2,2527.5,23.12286621]
[1642935275002,10.9678909,2529.2,2527.5,0.01286621]
[1642935275249,0.97598306,2528.7,2528.3,1.32428039]
[1642935275450,1.0,2529.1,2528.3,1.32428039]
[1642935275451,2.74441159,2529.0,2528.3,1.32428039]
[1642935275651,0.6,2528.7,2528.3,1.32428039]
[1642935276051,1.0,2528.9,2528.3,1.32428039]
[1642935276052,0.6,2528.9,2528.3,1.32428039]
[1642935276352,0.3,2528.9,2528.3,1.32428039]
[1642935276556,1.3,2529.1,2528.3,1.32428039]
[1642935276557,1.6,2529.1,2528.3,1.32428039]
[1642935276952,1.6,2529.1,2529.0,0.72580144]
[1642935277155,1.6,2529.1,2528.8,1.25365128]
[1642935278153,1.0,2529.3,2528.8,1.25365128]
[1642935278353,1.27598306,2529.4,2528.8,2.59174342]
[1642935278556,1.57598306,2529.4,2528.8,2.59174342]
[1642935278995,0.13819997,2529.5,2528.8,2.59174342]
[1642935279198,0.20638942,2529.8,2528.8,25.70174342]
[1642935279397,4.2155,2530.1,2528.8,2.59174342]
[1642935279398,0.04092649,2529.4,2528.8,2.59174342]
[1642935279794,0.04035807,2529.3,2528.8,2.59174342]
[1642935279995,0.04035807,2529.3,2529.2,1.14984788]
[1642935280196,0.97598306,2529.7,2529.2,1.14984788]
[1642935280402,0.04035807,2529.3,2528.3,9.564]
[1642935280700,2.8463672,2529.6,2528.2,2.3878]
[1642935280899,0.08685181,2529.3,2528.2,2.3878]
[1642935281299,7.48,2529.2,2528.2,2.3878]
[1642935281499,2.67722987,2529.1,2528.4,1.53773741]
[1642935281701,1.0,2529.1,2528.4,3.08195025]
[1642935281899,1.3,2529.1,2528.4,3.08195025]
[1642935282300,1.3,2529.1,2528.4,1.54421284]
[1642935282753,1.3,2529.1,2527.7,0.4038]
[1642935282958,2.71308714,2529.0,2527.7,0.4038]
[1642935283157,1.0,2528.9,2527.7,0.4038]
[1642935283352,1.0,2528.9,2528.1,1.3525633]
[1642935283353,3.19651686,2528.8,2528.1,1.3525633]
[1642935283554,1.0,2528.7,2528.1,1.3525633]
[1642935283756,1.3,2528.7,2528.3,1.29267649]
[1642935283955,0.3,2528.7,2528.3,1.29267649]
[1642935284255,0.3,2528.8,2528.3,1.29267649]
[1642935284654,1.3,2529.0,2528.3,1.29267649]
[1642935284855,0.3,2528.9,2528.3,1.29267649]
[1642935285056,0.6,2529.0,2528.3,1.29267649]
[1642935285463,0.3,2529.0,2528.3,1.29267649]
[1642935285660,1.0,2529.1,2528.3,1.29267649]
[1642935285862,1.3,2529.1,2528.3,1.29267649]
[1642935286361,1.0,2529.1,2528.9,0.57558401]
[1642935286598,0.04149491,2529.5,2528.9,0.57558401]
[1642935287401,0.04149491,2529.5,2528.3,1.29267649]
[1642935287402,0.12834672,2529.5,2528.3,1.29267649]
[1642935287603,0.12834672,2529.5,2528.8,1.32460027]
[1642935287803,0.32587751,2529.4,2528.8,1.32460027]
[1642935288201,0.04035807,2529.3,2528.8,1.32460027]
[1642935288400,3.69035807,2529.3,2528.8,1.32460027]
[1642935288603,1.3,2529.2,2528.8,1.32460027]
[1642935289402,3.69035807,2529.3,2528.8,1.32460027]
[1642935289602,3.69035807,2529.3,2529.0,1.54328098]
[1642935289899,0.04035807,2529.3,2529.0,1.54328098]
[1642935290358,0.04035807,2529.3,2529.1,2.77659028]
[1642935290560,0.04035807,2529.3,2529.2,4.35]
[1642935291457,0.04035807,2529.3,2529.2,5.53163252]
[1642935291654,0.04035807,2529.3,2529.2,1.18163252]
[1642935292255,0.04035807,2529.3,2529.0,1.54328098]
[1642935292455,0.04035807,2529.3,2528.4,3.7507]
[1642935292654,0.04035807,2529.3,2528.0,0.01205876]
[1642935292855,0.04035807,2529.3,2528.0,6.27669909]
[1642935293054,0.04035807,2529.3,2528.0,3.51205876]
[1642935293456,0.04035807,2529.3,2528.9,1.2988206]
[1642935293656,0.04035807,2529.3,2528.7,1.37778097]
[1642935294299,0.04035807,2529.3,2528.8,2.66303075]
[1642935294504,0.04035807,2529.3,2528.7,4.15116292]
[1642935294699,0.04035807,2529.3,2528.8,1.26189104]
[1642935294901,0.04035807,2529.3,2529.2,1.29654783]
[1642935295100,0.04035807,2529.3,2528.8,1.26189104]
[1642935295304,0.04035807,2529.3,2528.0,2.92206106]
[1642935295506,0.04035807,2529.3,2528.0,2.82279354]
[1642935295705,0.04035807,2529.3,2528.1,0.14801]
[1642935295908,0.04035807,2529.3,2528.2,0.19776]
[1642935296105,0.04035807,2529.3,2528.3,23.11]
[1642935296305,0.04035807,2529.3,2528.4,28.02080367]
[1642935297306,0.04035807,2529.3,2528.5,1.40664385]
[1642935297510,0.04035807,2529.3,2528.6,25.89215492]
[1642935297759,0.04035807,2529.3,2528.6,2.78215492]
[1642935297959,0.04035807,2529.3,2529.2,1.69118551]
[1642935298663,0.04035807,2529.3,2529.2,0.48131185]
[1642935300060,0.04035807,2529.3,2529.2,2.02533958]
[1642935300263,0.04035807,2529.3,2529.2,0.48131185]
[1642935300664,0.04035807,2529.3,2528.5,23.11]
[1642935301066,0.04035807,2529.3,2528.4,2.3561]
[1642935301272,0.04035807,2529.3,2528.7,1.45921988]
[1642935301703,0.3331803,2529.2,2528.7,1.56289291]
[1642935301905,0.6331803,2529.2,2528.7,1.56289291]
[1642935302305,0.63197662,2529.2,2528.7,1.56289291]
[1642935302705,0.63197662,2529.2,2528.8,1.26257219]
[1642935302706,0.3331803,2529.2,2528.8,1.26257219]
[1642935302906,0.04035807,2529.3,2528.9,23.11]
[1642935306058,0.04035807,2529.3,2528.9,23.30776]
[1642935306256,0.04035807,2529.3,2528.8,24.37257219]
[1642935307659,0.04035807,2529.3,2529.2,1.40239843]
[1642935307859,0.04035807,2529.3,2528.7,1.76065291]
[1642935308062,0.01670773,2529.2,2528.7,1.56289291]
[1642935308259,0.04035807,2529.3,2528.7,1.56289291]
[1642935309108,0.34035807,2529.3,2528.7,1.56289291]
[1642935309305,0.3,2529.2,2528.7,1.56289291]
[1642935309705,0.42720988,2529.3,2528.7,1.56289291]
[1642935310610,0.33372807,2529.2,2528.7,1.56289291]
[1642935311817,0.04035807,2529.3,2528.7,1.56289291]
[1642935312614,0.04035807,2529.3,2529.1,1.43482833]
[1642935313052,0.04035807,2529.3,2528.7,1.56289291]
[1642935314652,0.04035807,2529.3,2528.1,1.2302]
[1642935314851,2.81749932,2529.3,2528.1,1.2302]
[1642935315051,1.0,2529.2,2528.1,1.2302]
[1642935315455,1.0,2529.2,2527.9,3.88408047]
[1642935315456,1.3,2529.2,2527.9,3.88408047]
[1642935315656,1.3,2529.2,2528.5,1.50939703]
[1642935315657,0.3,2529.2,2528.5,1.50939703]
[1642935315856,0.34035807,2529.3,2528.9,1.2944491]
[1642935316056,0.04035807,2529.3,2528.9,1.2944491]
[1642935317306,0.04035807,2529.3,2529.0,0.02356952]
[1642935317705,0.04035807,2529.3,2528.9,1.2944491]
[1642935318108,0.73705145,2530.0,2529.0,0.01591658]
[1642935318406,0.04376861,2529.9,2529.3,1.5369272]
[1642935318808,0.04320018,2529.8,2529.3,1.5369272]
[1642935319208,0.04263176,2529.7,2529.3,1.5369272]
[1642935319416,0.04263176,2529.7,2529.4,0.03360703]
[1642935319605,0.04206334,2529.6,2529.4,0.03360703]
[1642935320005,0.04149491,2529.5,2529.4,5.83360703]
[1642935320255,0.04149491,2529.5,2529.4,5.8]
[1642935320460,0.0001,2530.0,2529.5,7.1]
[1642935320664,0.33022,2530.9,2529.7,30.21]
[1642935320665,0.2805,2530.9,2529.7,30.21]
[1642935320865,0.2805,2530.9,2529.8,0.02782042]
[1642935321064,0.2805,2530.9,2530.0,23.11]
[1642935321262,0.2805,2530.9,2530.1,0.19776]
[1642935321570,0.2805,2530.9,2530.3,30.00776]
[1642935321861,0.2805,2530.9,2530.3,6.89776]
[1642935322261,0.2805,2530.9,2530.5,23.11]
[1642935322465,1.0191013,2531.7,2530.6,0.19776]
[1642935322663,1.0191013,2531.7,2530.6,1.19776]
[1642935322864,1.0191013,2531.7,2530.7,23.11]
[1642935323064,1.0191013,2531.7,2530.8,1.0]
[1642935323263,0.33133549,2531.8,2531.5,1.49626629]
[1642935324311,0.33133549,2531.8,2531.6,1.09756863]
[1642935324510,0.33133549,2532.1,2531.5,1.49626629]
[1642935324909,1.63133549,2532.1,2531.5,1.49626629]
[1642935325315,0.63133549,2532.1,2531.5,1.49626629]
[1642935325517,1.63133549,2532.1,2531.5,1.49626629]
[1642935325922,1.3,2532.1,2531.5,1.49626629]
[1642935326317,1.3,2532.1,2531.9,1.43088417]
[1642935326617,7.48,2532.2,2531.9,1.43088417]
[1642935327019,0.33059164,2532.1,2531.9,1.43088417]
[1642935327221,0.33059164,2532.1,2531.6,1.49326681]
[1642935327618,0.33059164,2532.1,2530.8,3.8027]
[1642935327619,0.08685181,2532.0,2530.8,3.8027]
[1642935327864,0.01278584,2531.8,2530.6,2.6433]
[1642935328059,0.06250584,2531.8,2530.6,0.2688]
[1642935328259,0.08685181,2531.7,2530.6,0.2688]
[1642935328458,0.08685181,2531.7,2530.7,1.43267142]
[1642935328459,1.42424933,2531.5,2530.7,1.43267142]
[1642935328659,2.02424933,2531.5,2530.9,1.37048375]
[1642935328858,0.08685181,2531.4,2530.9,1.37048375]
[1642935329063,0.6,2531.5,2530.9,1.37048375]
[1642935329064,0.3,2531.5,2530.9,1.37048375]
[1642935329558,0.08685181,2531.7,2530.9,1.37048375]
[1642935330159,0.08685181,2531.7,2531.1,1.51150114]
[1642935330366,0.08685181,2531.7,2530.9,1.37048375]
[1642935330762,0.08685181,2531.7,2530.6,0.2688]
[1642935331363,1.3243572,2531.6,2530.7,1.34653396]
[1642935331614,2.13050172,2531.6,2530.7,1.34653396]
[1642935331813,2.13050172,2531.6,2530.9,1.40160842]
[1642935331814,0.08685181,2531.5,2530.9,1.40160842]
[1642935332115,0.29299738,2531.5,2530.9,1.40160842]
[1642935332317,0.08685181,2531.5,2530.9,1.40160842]
[1642935333619,0.38685181,2531.5,2531.1,1.25935972]
[1642935333818,0.08685181,2531.5,2531.1,1.25935972]
[1642935334523,0.08685181,2531.5,2530.9,1.40160842]
[1642935334719,0.08685181,2531.5,2530.6,0.2688]
[1642935335558,0.08685181,2531.5,2531.1,1.37173815]
[1642935336357,0.31285908,2531.8,2531.1,1.37173815]
[1642935336358,0.39971089,2531.8,2531.1,1.37173815]
[1642935336561,0.08685181,2531.8,2531.2,2.64088279]
[1642935336762,0.20612646,2531.9,2531.2,2.64088279]
[1642935336960,0.60420308,2532.5,2531.2,2.64088279]
[1642935337160,0.60420308,2532.5,2532.1,0.41195886]
[1642935337564,0.59198829,2532.5,2532.2,1.13510646]
[1642935338159,0.59198829,2532.5,2531.1,0.19776]
[1642935338561,0.59198829,2532.5,2531.0,0.01242254]
[1642935338562,0.6788401,2532.5,2531.0,0.01242254]
[1642935339025,0.6788401,2532.5,2531.8,1.38348541]
[1642935339220,0.6788401,2532.5,2532.2,1.2883164]
[1642935339821,0.27639994,2532.6,2532.2,1.2883164]
[1642935340025,0.08685181,2532.9,2532.2,1.2883164]
[1642935340226,4.3354,2533.2,2532.2,1.2883164]
[1642935340624,4.54139662,2533.2,2532.2,1.2883164]
[1642935340821,0.97598306,2532.9,2532.2,1.2883164]
[1642935341825,1.186,2532.8,2532.2,1.2883164]
[1642935342027,1.186,2532.7,2532.2,1.2883164]
[1642935342228,1.186,2532.7,2531.7,0.01292353]
[1642935342428,1.23572,2532.7,2531.0,6.31004478]
[1642935342626,2.23572,2532.7,2531.0,6.31004478]
[1642935343058,2.23572,2532.7,2531.0,2.3264]
[1642935343259,1.186,2532.0,2531.3,1.25588323]
[1642935343657,1.186,2531.9,2531.3,1.25588323]
[1642935344662,1.186,2531.9,2531.1,2.63017896]
[1642935344663,1.186,2531.9,2531.7,1.38941748]
[1642935345666,1.186,2531.9,2531.7,1.38784998]
[1642935346503,1.486,2531.9,2531.7,1.38784998]
[1642935347102,1.486,2531.9,2531.1,2.63017896]
[1642935347301,1.486,2531.9,2530.9,4.17819321]
[1642935347500,1.486,2531.9,2530.9,4.02793497]
[1642935347704,1.486,2531.9,2530.9,1.14719842]
[1642935347907,1.486,2531.9,2530.6,7.5951]
[1642935348111,1.486,2531.9,2530.6,7.2398]
[1642935348112,0.01342636,2531.8,2530.6,7.2398]
[1642935348306,1.486,2531.9,2531.1,1.12720652]
[1642935350007,2.486,2531.9,2531.1,1.12720652]
[1642935350858,2.486,2531.9,2530.3,0.20991614]
[1642935351059,0.04972,2531.8,2530.2,7.2299]
[1642935351457,0.04972,2531.8,2530.3,2.68392659]
[1642935351860,2.486,2531.9,2531.3,1.45102562]
[1642935352261,2.486,2531.9,2531.0,1.25516303]
[1642935353263,2.486,2531.9,2531.0,1.19566807]
[1642935353862,2.53572,2531.9,2531.0,1.19566807]
[1642935354924,1.23572,2531.9,2531.0,1.19566807]
[1642935355120,1.186,2531.9,2531.0,3.83557835]
[1642935355620,1.186,2531.9,2531.6,1.5318985]
[1642935355824,1.186,2531.9,2531.7,0.37376798]
[1642935356924,1.186,2531.9,2531.7,0.35829898]
[1642935358470,1.186,2531.9,2531.6,1.5318985]
[1642935358965,1.186,2531.9,2531.0,3.5]
[1642935359169,1.186,2531.9,2531.1,3.5]
[1642935359468,1.186,2531.8,2531.1,3.5]
[1642935359665,1.186,2531.8,2531.4,1.10994005]
[1642935360066,1.186,2531.8,2531.1,3.5]
[1642935360467,1.186,2531.6,2531.1,6.16139379]
[1642935360668,1.186,2531.6,2531.0,3.5]
[1642935360869,1.186,2531.5,2531.0,3.5]
[1642935361272,1.186,2531.5,2531.4,1.52550134]
[1642935365362,1.186,2531.5,2531.4,27.47511378]
[1642935365563,1.186,2531.5,2531.4,24.63550134]
[1642935366566,4.23540892,2532.8,2531.5,7.1]
[1642935366766,4.23540892,2532.8,2531.6,25.87429127]
[1642935366767,4.2198,2532.8,2531.6,25.87429127]
[1642935366968,4.2198,2532.8,2531.7,0.01258594]
[1642935367571,4.2198,2532.8,2532.4,2.83432493]
[1642935367768,0.99145206,2532.9,2532.4,1.50044998]
[1642935368368,1.59145206,2532.9,2531.7,3.10600799]
[1642935368569,1.59145206,2532.9,2531.7,0.01258594]
[1642935368770,1.59145206,2532.9,2532.0,1.2528743]
[1642935369409,0.6,2532.9,2532.5,1.54826966]
[1642935369609,1.0,2533.0,2532.5,1.54826966]
[1642935369610,1.6,2533.0,2532.5,1.54826966]
[1642935370413,1.6,2533.0,2531.9,2.73023775]
[1642935370617,1.6,2533.0,2531.7,3.88654218]
[1642935371016,0.99145206,2532.7,2532.2,1.55085315]
[1642935371215,1.29145206,2532.7,2532.2,1.55085315]
[1642935371415,1.6,2533.0,2532.2,1.55085315]
[1642935371621,1.6,2533.0,2532.5,1.29440659]
[1642935372618,0.59145206,2532.9,2532.5,1.29440659]
[1642935373457,0.59145206,2532.9,2531.8,25.78371725]
[1642935373858,0.59145206,2532.9,2531.9,0.19776]
[1642935374058,7.48,2533.1,2531.8,25.78371725]
[1642935374261,7.48,2533.1,2532.1,23.11]
[1642935374458,7.48,2533.1,2532.2,3.02105412]
[1642935374659,7.48,2533.1,2532.2,26.13105412]
[1642935374859,7.48,2533.1,2532.0,0.19776]
[1642935375062,0.59145206,2532.8,2532.3,1.26313996]
[1642935375261,0.59145206,2532.8,2532.0,0.19776]
[1642935375466,0.59145206,2532.8,2531.7,1.33784594]
[1642935375666,0.59145206,2532.8,2531.7,1.1275]
[1642935375866,0.59145206,2532.8,2531.8,0.19776]
[1642935376065,0.59145206,2532.8,2531.7,24.2375]
[1642935376066,0.89145206,2532.8,2531.7,24.2375]
[1642935376511,1.19145206,2532.8,2532.2,1.34258971]
[1642935376712,1.19145206,2532.8,2531.7,1.1275]
[1642935377114,1.19145206,2532.8,2532.2,1.401535]
[1642935377315,0.13819997,2533.4,2532.2,1.401535]
[1642935377515,0.13819997,2533.4,2532.3,25.72239742]
[1642935377713,0.32986188,2533.3,2532.3,25.72239742]
[1642935378113,0.32986188,2533.3,2532.3,2.61239742]
[1642935378314,0.32986188,2533.3,2532.0,0.19776]
[1642935378315,0.59145206,2532.9,2532.6,1.14463949]
[1642935378614,0.62986188,2533.3,2532.6,1.14463949]
[1642935379015,0.32986188,2533.2,2532.6,1.14463949]
[1642935379316,0.27986188,2533.2,2532.6,1.14463949]
[1642935379918,0.27986188,2533.2,2533.0,1.17428899]
[1642935380468,0.27986188,2533.2,2532.2,3.7837]
[1642935380668,0.27986188,2533.2,2532.2,2.64285104]
[1642935380869,0.27986188,2533.2,2532.0,2.54346]
[1642935381070,0.27986188,2533.2,2532.0,2.3457]
[1642935381471,1.39213342,2532.8,2532.4,1.50646694]
[1642935382074,1.99213342,2532.8,2532.4,1.50646694]
[1642935382271,1.27986188,2533.2,2532.4,1.50646694]
[1642935382571,0.57986188,2533.2,2532.4,1.50646694]
[1642935382770,1.6,2533.2,2532.4,1.50646694]
[1642935383171,0.6,2533.2,2532.4,1.50646694]
[1642935383371,1.52712317,2533.1,2532.6,1.29826514]
[1642935383571,1.82712317,2533.1,2532.6,1.29826514]
[1642935384011,0.3,2533.1,2532.8,1.37647092]
[1642935384412,0.6,2533.3,2532.8,1.37647092]
[1642935384617,0.75032415,2533.4,2532.8,1.37647092]
[1642935385212,1.20157518,2533.2,2532.8,1.37647092]
[1642935385619,0.6,2533.2,2532.8,1.37647092]
[1642935385920,0.3,2533.2,2532.8,1.37647092]
[1642935386118,1.75032415,2533.4,2532.8,1.37647092]
[1642935386720,0.33056628,2533.3,2532.8,1.37647092]
[1642935387125,1.42903255,2533.1,2532.8,1.37647092]
[1642935387324,2.02903255,2533.1,2532.8,1.37647092]
[1642935387762,2.02903255,2533.1,2532.2,3.8569]
[1642935387961,2.02903255,2533.1,2532.0,2.3457]
[1642935387962,0.33056628,2533.0,2532.0,2.3457]
[1642935388566,2.96602807,2533.0,2531.8,1.53471401]
[1642935388768,2.96602807,2533.0,2531.4,1.41646]
[1642935388769,0.48184269,2532.3,2531.4,1.41646]
[1642935388971,0.48184269,2532.3,2531.4,1.2187]
[1642935388972,0.78184269,2532.3,2531.4,1.2187]
[1642935389167,0.78184269,2532.3,2531.2,1.1361]
[1642935389168,0.08685181,2532.2,2531.2,1.1361]
[1642935389367,0.08685181,2532.2,2530.8,0.2393]
[1642935389368,0.01288237,2532.2,2530.8,0.2393]
[1642935389567,0.01288237,2532.2,2530.8,23.3493]
[1642935389772,2.11386258,2532.3,2531.4,2.571382]
[1642935389968,1.0,2532.4,2531.4,2.571382]
[1642935390170,0.3,2532.2,2531.4,2.571382]
[1642935390368,0.3,2532.5,2531.4,2.571382]
[1642935390970,1.32688389,2531.9,2531.4,2.571382]
[1642935391169,1.62688389,2531.9,2531.4,2.571382]
[1642935391370,1.92688389,2531.9,2531.4,2.571382]
[1642935391609,1.92688389,2531.9,2531.4,1.31653542]
[1642935391815,1.92688389,2531.9,2530.9,12.6006]
[1642935392010,1.92688389,2531.9,2530.9,1.1491]
[1642935392817,0.58399135,2531.5,2530.9,1.1491]
[1642935393016,0.58399135,2531.5,2530.8,0.2393]
[1642935393017,0.88399135,2531.5,2530.8,0.2393]
[1642935393417,1.18399135,2531.5,2530.8,0.2393]
[1642935393815,1.18399135,2531.5,2531.0,2.63939236]
[1642935394020,1.18399135,2531.5,2530.8,0.2393]
[1642935394418,1.18399135,2531.5,2530.2,1.24330421]
[1642935394619,1.18399135,2531.5,2530.2,1.2308]
[1642935394620,3.48709383,2531.4,2530.2,1.2308]
[1642935394818,3.54678777,2531.4,2529.8,1.2034]
[1642935395022,1.25230919,2530.7,2530.3,1.22281541]
[1642935395283,0.3,2530.7,2530.3,1.22281541]
[1642935395474,1.6,2531.0,2530.3,1.22281541]
[1642935395671,0.6,2531.0,2530.3,1.22281541]
[1642935395872,1.0,2531.5,2530.3,1.22281541]
[1642935396273,1.44240395,2531.1,2530.6,1.12849392]
[1642935396474,1.74240395,2531.1,2530.3,1.22281541]
[1642935396674,2.04240395,2531.1,2530.3,1.22281541]
[1642935397472,2.04240395,2531.1,2530.5,1.4994987]
[1642935397873,2.04240395,2531.1,2530.7,1.45379667]
[1642935397874,1.44240395,2531.1,2530.7,1.45379667]
[1642935398474,1.74240395,2531.1,2530.2,1.131]
[1642935398673,2.04240395,2531.1,2530.2,1.131]
[1642935398878,2.70121667,2531.0,2529.7,3.6552]
[1642935399117,1.0,2530.9,2529.8,1.2034]
[1642935399316,0.3,2530.8,2529.8,1.2034]
[1642935399520,0.46847129,2530.4,2530.0,1.23288234]
[1642935399716,1.70255192,2530.8,2530.0,1.23288234]
[1642935399717,5.94435192,2530.8,2530.0,1.23288234]
[1642935399919,0.3,2530.4,2530.0,1.23288234]
[1642935400117,1.0,2530.7,2530.0,1.23288234]
[1642935400520,1.3,2530.7,2530.0,1.23288234]
[1642935400721,1.3,2530.7,2530.0,1.23194897]
[1642935400920,1.23610004,2530.5,2530.0,1.23194897]
[1642935401122,1.53610004,2530.5,2530.0,1.23194897]
[1642935401321,1.83610004,2530.5,2530.0,1.23194897]
[1642935402124,1.23610004,2530.5,2530.0,1.23194897]
[1642935403368,1.23610004,2530.5,2529.8,2.55595204]
[1642935403369,1.83610004,2530.5,2529.8,2.55595204]
[1642935403663,1.83350784,2530.5,2529.6,0.01270533]
[1642935404469,1.08820797,2530.4,2529.6,1.27417899]
[1642935404663,2.08820797,2530.4,2529.6,1.27417899]
[1642935404862,2.08820797,2530.4,2529.7,1.22759696]
[1642935404863,0.6747752,2530.1,2529.7,1.22759696]
[1642935405065,2.08820797,2530.4,2529.6,1.27417899]
[1642935405263,0.3,2530.1,2529.6,1.27417899]
[1642935405471,0.5974078,2530.5,2529.6,1.27417899]
[1642935405669,1.3,2530.7,2529.6,1.27417899]
[1642935406167,1.39571256,2530.3,2529.8,1.09701675]
[1642935406368,1.39571256,2530.3,2529.6,1.27417899]
[1642935406624,1.99571256,2530.3,2529.6,1.26147366]
[1642935407426,1.99571256,2530.3,2529.6,2.82368938]
[1642935407729,1.99571256,2530.3,2529.6,1.26147366]
[1642935407926,1.99571256,2530.3,2529.5,1.2401]
[1642935408426,0.6,2530.3,2529.5,1.2401]
[1642935408725,0.6,2530.4,2529.5,1.2401]
[1642935408927,1.71034357,2530.5,2529.5,2.55417647]
[1642935409532,1.61742075,2530.3,2529.8,1.45999338]
[1642935409727,1.91742075,2530.3,2529.5,2.55417647]
[1642935409927,0.6,2530.3,2529.5,2.55417647]
[1642935410129,0.3,2530.3,2529.5,2.55417647]
[1642935410389,1.11034357,2530.5,2529.5,2.55417647]
[1642935411188,2.66872076,2530.5,2530.0,1.38710138]
[1642935411388,2.96872076,2530.5,2529.5,2.55417647]
[1642935411588,1.0,2530.4,2529.5,2.55417647]
[1642935412594,1.0,2530.4,2529.8,1.18394068]
[1642935413397,1.0,2530.4,2529.5,2.55417647]
[1642935414522,1.0,2530.4,2530.0,1.50361561]
[1642935414721,1.0,2530.4,2529.5,2.55417647]
[1642935415524,3.6637986,2530.4,2529.5,1.2401]
[1642935415724,0.00874802,2529.6,2529.0,0.01223547]
[1642935415927,0.35249805,2529.7,2528.8,0.19776]
[1642935415928,0.35249805,2529.7,2528.8,1.38766]
[1642935416123,0.00656728,2530.2,2528.8,1.38766]
[1642935416124,1.0,2530.2,2528.8,1.38766]
[1642935416324,0.3,2530.2,2528.8,1.38766]
[1642935416530,0.3,2530.2,2529.0,1.54661285]
[1642935416531,1.54668095,2529.8,2529.0,1.54661285]
[1642935416725,1.54668095,2529.8,2528.8,1.1899]
[1642935416926,2.14668095,2529.8,2528.8,1.1899]
[1642935417126,1.53954689,2529.4,2528.9,1.33514234]
[1642935417326,2.14668095,2529.8,2528.9,1.33514234]
[1642935418077,2.14668095,2529.8,2529.0,1.49581138]
[1642935418278,0.6,2529.8,2529.3,1.21532489]
[1642935418491,1.0,2530.4,2529.3,1.21532489]
[1642935418682,0.3,2530.4,2529.3,1.21532489]
[1642935418883,12.73805181,2530.7,2529.3,1.21532489]
[1642935419084,7.58415181,2530.7,2529.3,1.21532489]
[1642935419384,1.47401023,2529.8,2529.3,4.85202489]
[1642935419685,1.47401023,2529.8,2529.0,1.49581138]
[1642935419886,1.47401023,2529.8,2528.9,0.01264308]
[1642935419887,1.31514573,2529.7,2528.9,0.01264308]
[1642935420084,2.91514573,2529.7,2528.9,0.01264308]
[1642935420284,2.91514573,2529.7,2528.7,1.2228]
[1642935420285,1.0,2529.6,2528.7,1.2228]
[1642935420488,0.43686501,2529.0,2528.7,1.2228]
[1642935420690,2.96486573,2529.7,2528.7,1.2228]
[1642935420886,1.96486573,2529.7,2528.7,1.2228]
[1642935421525,1.96486573,2529.7,2528.7,3.79516084]
[1642935421723,1.41672361,2529.5,2529.0,1.16654011]
[1642935421923,2.01672361,2529.5,2529.0,1.16654011]
[1642935422123,0.6,2529.5,2529.0,1.16654011]
[1642935422323,0.3,2529.5,2529.0,1.16654011]
[1642935422523,0.3,2529.4,2529.0,1.16654011]
[1642935422827,0.1874,2529.9,2529.1,2.68356232]
[1642935423028,0.1874,2529.9,2529.1,2.70685266]
[1642935423526,0.1874,2529.9,2529.5,1.31380511]
[1642935424426,0.1874,2529.9,2529.0,0.012003]
[1642935424828,0.1874,2529.9,2529.0,0.209763]
[1642935425282,0.1874,2529.9,2529.1,23.11]
[1642935425480,0.1874,2529.9,2529.3,23.11]
[1642935425679,0.1874,2529.9,2529.5,1.23561047]
[1642935426388,0.1874,2529.9,2529.5,1.23458937]
[1642935426587,0.1874,2529.9,2529.2,0.19776]
[1642935426881,0.1874,2529.9,2528.9,26.27936621]
[1642935427082,0.1874,2529.9,2528.9,3.16936621]
[1642935427281,0.1874,2529.9,2528.9,2.83198936]
[1642935427482,1.0881983,2529.7,2528.9,2.83198936]
[1642935427682,1.0881983,2529.7,2528.9,0.19776]
[1642935427683,0.44284331,2529.6,2528.9,0.19776]
[1642935427886,0.44284331,2529.6,2528.8,1.1349]
[1642935428084,0.52969512,2529.6,2528.4,3.8244]
[1642935428284,0.08685181,2529.5,2528.4,3.8244]
[1642935428886,0.08685181,2529.5,2528.8,1.54005523]